[Event "RUS-chT Men Rapid 2019"]
[Site "Sochi"]
[Date "2019.10.19"]
[Round "7.18"]
[White "Bryakin, Mikhail"]
[Black "Vakhlamov, Igor L."]
[Result "1/2-1/2"]
[ECO "E01"]
[WhiteElo "2440"]
[BlackElo "2413"]
[Annotator "NA"]
[PlyCount "25"]
[EventDate "2019.10.18"]
[EventType "swiss"]
[EventCountry "RUS"]
[SourceTitle "playchess.com"]
[Source "ChessBase"]
[SourceQuality "1"]
[TimeControl "900+10"]

1. d4 {[%emt 0:00:00]} Nf6 {[%emt 0:00:00]} 2. c4 {[%emt 0:00:00]} e6 {[%emt 0:00:00]} 3. g3 {[%emt 0:00:00]} d5 {[%emt 0:00:00]} 4. Bg2 {[%emt 0:00:00]} Bb4+ {[%emt 0:00:00]} 5. Bd2 {[%emt 0:00:00]} Be7 {[%emt 0:00:00]} 6. Qc2 {[%emt 0:00:02]} O-O {[%emt 0:00:03]} 7. Nf3 {[%emt 0:00:02]} Nbd7 {[%emt 0:00:01]} 8. a4 {[%emt 0:00:18]} a5 {[%emt 0:00:31]} 9. Na3 {[%emt 0:00:04]} Ne4 {[%emt 0:01:08]} 10. O-O {[%emt 0:00:05]} c6 {[%emt 0:00:36]} 11. Bf4 {[%emt 0:00:02]} f5 {[%emt 0:02:17]} 12. Qc1 {[%emt 0:00:25]} g5 {[%emt 0:01:45]} 13. Be3 {[%emt 0:00:02]} 1/2-1/2

[Event "RUS-chT Men Rapid 2019"]
[Site "Sochi"]
[Date "2019.10.19"]
[Round "7.20"]
[White "Apryshko, Gleb"]
[Black "Frolov, Aleksey G."]
[Result "1-0"]
[ECO "A00"]
[WhiteElo "2382"]
[BlackElo "2093"]
[Annotator "NA"]
[PlyCount "135"]
[EventDate "2019.10.18"]
[EventType "swiss"]
[EventCountry "RUS"]
[SourceTitle "playchess.com"]
[Source "ChessBase"]
[SourceQuality "1"]
[TimeControl "900+10"]

1. g3 {[%emt 0:00:00]} Nf6 {[%emt 0:00:00]} 2. Bg2 {[%emt 0:00:00]} g6 {[%emt 0:00:00]} 3. c4 {[%emt 0:00:15]} d5 {[%emt 0:00:14]} 4. cxd5 {[%emt 0:00:36]} Nxd5 {[%emt 0:00:02]} 5. Qb3 {[%emt 0:00:30]} Nb6 {[%emt 0:00:15]} 6. Qc3 {[%emt 0:00:02]} f6 {[%emt 0:00:03]} 7. h4 {[%emt 0:00:07]} e5 {[%emt 0:02:06]} 8. h5 {[%emt 0:00:58]} g5 {[%emt 0:00:28]} 9. d3 {[%emt 0:00:26]} a5 {[%emt 0:00:40]} 10. Nd2 {[%emt 0:00:03]} Be6 {[%emt 0:01:04]} 11. Bxb7 {[%emt 0:00:29]} Nd5 {[%emt 0:00:32]} 12. Qc2 {[%emt 0:02:27]} Ra7 {[%emt 0:00:31]} 13. Bxd5 {[%emt 0:01:02]} Qxd5 {[%emt 0:01:00]} 14. e4 {[%emt 0:00:17]} Qd7 {[%emt 0:00:17]} 15. Ne2 {[%emt 0:00:15]} Na6 {[%emt 0:01:26]} 16. a3 {[%emt 0:01:55]} Nc5 {[%emt 0:00:10]} 17. O-O {[%emt 0:00:01]} Qxd3 18. Qxd3 {[%emt 0:00:01]} Nxd3 {[%emt 0:01:42]} 19. Nc3 {[%emt 0:00:01]} Bh3 {[%emt 0:01:31]} 20. Rd1 {[%emt 0:00:00]} Bc5 {[%emt 0:00:10]} 21. Nb3 {[%emt 0:00:01]} Bxf2+ {[%emt 0:00:02]} 22. Kh2 {[%emt 0:00:02]} Nxc1 {[%emt 0:00:03]} 23. Raxc1 {[%emt 0:00:16]} Be6 {[%emt 0:00:04]} 24. Rf1 {[%emt 0:06:35]} Be3 {[%emt 0:01:12]} 25. Rce1 {[%emt 0:00:03]} Bb6 {[%emt 0:00:05]} 26. Nd5 {[%emt 0:00:06]} Bxd5 {[%emt 0:00:32]} 27. exd5 {[%emt 0:00:01]} Ke7 {[%emt 0:00:03]} 28. Nd2 {[%emt 0:00:07]} Raa8 {[%emt 0:00:24]} 29. Ne4 {[%emt 0:00:25]} Rhf8 {[%emt 0:00:05]} 30. g4 {[%emt 0:01:55]} Bd4 {[%emt 0:00:06]} 31. Rc1 {[%emt 0:00:08]} Ra7 {[%emt 0:00:55]} 32. Rc6 {[%emt 0:00:20]} Rb7 {[%emt 0:00:24]} 33. Re6+ {[%emt 0:00:04]} Kd7 {[%emt 0:00:09]} 34. Rfxf6 {[%emt 0:00:49]} Rxb2+ {[%emt 0:00:02]} 35. Kh1 {[%emt 0:00:04]} Rb1+ {[%emt 0:00:23]} 36. Kg2 {[%emt 0:00:06]} Rb2+ {[%emt 0:00:03]} 37. Kf1 {[%emt 0:00:03]} Rxf6+ {[%emt 0:00:42]} 38. Nxf6+ {[%emt 0:00:02]} Kc8 {[%emt 0:00:01]} 39. Nxh7 {[%emt 0:00:18]} Rf2+ {[%emt 0:01:13]} 40. Ke1 {[%emt 0:00:00]} Rg2 {[%emt 0:00:09]} 41. h6 {[%emt 0:00:30]} Rxg4 {[%emt 0:01:11]} 42. Nf6 {[%emt 0:00:03]} Rh4 {[%emt 0:00:02]} 43. h7 {[%emt 0:00:22]} e4 {[%emt 0:00:01]} 44. Re8+ {[%emt 0:00:01]} Kb7 {[%emt 0:00:01]} 45. h8=Q {[%emt 0:00:04]} Rxh8 {[%emt 0:00:02]} 46. Rxh8 {[%emt 0:00:01]} Bxf6 {[%emt 0:00:01]} 47. Rh6 {[%emt 0:00:37]} Be7 {[%emt 0:00:34]} 48. a4 {[%emt 0:00:04]} Bd6 {[%emt 0:00:04]} 49. Ke2 {[%emt 0:00:22]} g4 {[%emt 0:00:13]} 50. Rh4 {[%emt 0:00:13]} g3 {[%emt 0:00:05]} 51. Rxe4 {[%emt 0:00:06]} Kb6 {[%emt 0:00:01]} 52. Rc4 {[%emt 0:00:03]} Kb7 {[%emt 0:00:51]} 53. Rc6 {[%emt 0:00:11]} Bb4 {[%emt 0:00:11]} 54. Kf3 {[%emt 0:00:01]} Be1 {[%emt 0:00:02]} 55. Rg6 {[%emt 0:00:15]} Bf2 {[%emt 0:00:15]} 56. Ke4 {[%emt 0:00:06]} Be1 {[%emt 0:00:30]} 57. Kd3 {[%emt 0:00:11]} Kc8 {[%emt 0:00:41]} 58. Rg7 {[%emt 0:00:01]} Kd8 {[%emt 0:00:07]} 59. Kc4 {[%emt 0:00:01]} Bf2 {[%emt 0:00:18]} 60. Kb5 {[%emt 0:00:10]} Bb6 {[%emt 0:00:39]} 61. Kc6 {[%emt 0:00:19]} Bf2 {[%emt 0:00:09]} 62. Rg8+ {[%emt 0:00:16]} Ke7 {[%emt 0:00:01]} 63. Kxc7 {[%emt 0:00:01]} Bc5 {[%emt 0:00:09]} 64. Rg7+ {[%emt 0:00:03]} Kf6 {[%emt 0:00:04]} 65. Rxg3 {[%emt 0:00:03]} Ke5 {[%emt 0:00:01]} 66. Kc6 {[%emt 0:00:04]} Bb4 {[%emt 0:00:01]} 67. Rd3 {[%emt 0:00:05]} Ke4 {[%emt 0:00:05]} 68. Rd1 {[%emt 0:00:01] Kxd5+} 1-0

[Event "RUS-chT Men Rapid 2019"]
[Site "Sochi"]
[Date "2019.10.19"]
[Round "7.21"]
[White "Shcherbin, Matvei"]
[Black "Tsydypov, Zhamsaran"]
[Result "0-1"]
[ECO "B22"]
[WhiteElo "2366"]
[BlackElo "2553"]
[Annotator "RC"]
[PlyCount "90"]
[EventDate "2019.10.18"]
[EventType "swiss"]
[EventCountry "RUS"]
[SourceTitle "playchess.com"]
[Source "ChessBase"]
[SourceQuality "1"]
[TimeControl "900+10"]

1. e4 {[%emt 0:00:00]} c5 {[%emt 0:00:00]} 2. c3 {[%emt 0:00:00]} Nf6 {[%emt 0:00:42]} 3. e5 {[%emt 0:00:00]} Nd5 {[%emt 0:00:01]} 4. d4 {[%emt 0:00:00]} cxd4 {[%emt 0:00:09]} 5. Nf3 {[%emt 0:00:00]} e6 {[%emt 0:00:15]} 6. cxd4 {[%emt 0:00:00]} b6 {[%emt 0:00:01]} 7. Nc3 {[%emt 0:00:12]} Bb7 {[%emt 0:00:02]} 8. Bd3 {[%emt 0:00:18]} Nxc3 {[%emt 0:00:58]} 9. bxc3 {[%emt 0:00:02]} Be7 {[%emt 0:00:36]} 10. O-O {[%emt 0:00:37]} O-O {[%emt 0:00:05]} 11. Bf4 {[%emt 0:00:17]} d6 {[%emt 0:00:38]} 12. exd6 {[%emt 0:00:27]} Bxd6 {[%emt 0:00:01]} 13. Bxh7+ {[%emt 0:04:20]} Kxh7 {[%emt 0:00:16]} 14. Ng5+ {[%emt 0:00:01]} Kg6 {[%emt 0:03:06]} 15. Qg4 {[%emt 0:00:26]} f5 {[%emt 0:00:29]} 16. Qe2 {[%emt 0:02:28]} Bxf4 {[%emt 0:00:06]} 17. Nxe6 {[%emt 0:00:02]} Qd6 {[%emt 0:02:47]} 18. g3 {[%emt 0:01:58]} Bh6 {[%emt 0:00:18]} 19. Nxf8+ {[%emt 0:00:04]} Qxf8 {[%emt 0:00:02]} 20. Qe6+ {[%emt 0:00:01]} Qf6 {[%emt 0:00:32]} 21. Qb3 {[%emt 0:00:56]} Nc6 {[%emt 0:01:09]} 22. Rae1 {[%emt 0:00:26]} Na5 {[%emt 0:00:01]} 23. Qd1 {[%emt 0:01:00]} Ba6 {[%emt 0:00:45]} 24. d5 {[%emt 0:00:02]} Bxf1 {[%emt 0:00:02]} 25. Re6 {[%emt 0:00:02]} Bc4 {[%emt 0:00:06]} 26. Rxf6+ {[%emt 0:00:11]} gxf6 {[%emt 0:00:04]} 27. g4 {[%emt 0:00:21]} Rd8 {[%emt 0:00:20]} 28. gxf5+ {[%emt 0:00:04]} Kh7 {[%emt 0:00:02]} 29. d6 {[%emt 0:02:07]} Nc6 {[%emt 0:01:15]} 30. f4 {[%emt 0:00:49]} Bf7 {[%emt 0:00:06]} 31. Kf2 {[%emt 0:00:13]} Bf8 {[%emt 0:00:06]} 32. d7 {[%emt 0:00:11]} Nb8 {[%emt 0:00:05]} 33. Qg4 {[%emt 0:02:05]} Nxd7 {[%emt 0:00:05]} 34. Qd1 {[%emt 0:00:10]} Bc5+ {[%emt 0:00:11]} 35. Kf1 {[%emt 0:00:03]} Bc4+ {[%emt 0:00:11]} 36. Kg2 {[%emt 0:00:05]} Rg8+ {[%emt 0:00:10]} 37. Kh3 {[%emt 0:00:01]} Rg7 {[%emt 0:00:03]} 38. Qh5+ {[%emt 0:00:34]} Kg8 {[%emt 0:00:01]} 39. Qf3 {[%emt 0:00:02]} Bxa2 {[%emt 0:00:16]} 40. Qa8+ {[%emt 0:00:47]} Nf8 {[%emt 0:00:06]} 41. Qc6 {[%emt 0:00:01]} Bc4 {[%emt 0:00:06]} 42. Qxf6 {[%emt 0:00:25]} Bf1+ {[%emt 0:00:01]} 43. Kh4 {[%emt 0:00:01]} Bf2+ {[%emt 0:00:02]} 44. Kh5 {[%emt 0:00:01]} Rh7+ {[%emt 0:00:01]} 45. Kg4 {[%emt 0:00:04]} Be2+ {[%emt 0:00:02]} 0-1

[Event "RUS-chT Men Rapid 2019"]
[Site "Sochi"]
[Date "2019.10.19"]
[Round "7.23"]
[White "Keosidi, Konstantin"]
[Black "Moiseenko, Vadim"]
[Result "0-1"]
[ECO "C47"]
[WhiteElo "2400"]
[BlackElo "2532"]
[Annotator "ChessBase"]
[PlyCount "88"]
[EventDate "2019.10.18"]
[EventType "swiss"]
[EventCountry "RUS"]
[SourceTitle "playchess.com"]
[Source "ChessBase"]
[SourceQuality "1"]
[TimeControl "900+10"]

1. e4 {[%emt 0:00:00]} e5 {[%emt 0:00:00]} 2. Nf3 {[%emt 0:00:00]} Nc6 {[%emt 0:00:00]} 3. Nc3 {[%emt 0:00:00]} Nf6 {[%emt 0:00:00]} 4. d4 {[%emt 0:00:01]} exd4 {[%emt 0:00:00]} 5. Nxd4 {[%emt 0:00:02]} Bc5 {[%emt 0:00:01]} 6. Be3 {[%emt 0:00:02]} Bb6 {[%emt 0:00:01]} 7. Qd2 {[%emt 0:02:16]} Ng4 {[%emt 0:00:11]} 8. Nf5 {[%emt 0:01:13]} Nxe3 {[%emt 0:00:04]} 9. Nxe3 {[%emt 0:00:05]} O-O {[%emt 0:00:03]} 10. O-O-O {[%emt 0:00:36]} d6 {[%emt 0:00:01]} 11. Kb1 {[%emt 0:01:12]} Be6 {[%emt 0:00:09]} 12. f4 {[%emt 0:00:24]} f6 {[%emt 0:00:10]} 13. Bc4 {[%emt 0:00:20]} Qd7 {[%emt 0:00:06]} 14. Rhe1 {[%emt 0:00:51]} Rae8 {[%emt 0:00:16]} 15. Ned5 {[%emt 0:00:38]} Ba5 {[%emt 0:00:05]} 16. a3 {[%emt 0:00:21]} Kh8 {[%emt 0:00:05]} 17. h3 {[%emt 0:00:05]} Ne7 {[%emt 0:01:23]} 18. b4 {[%emt 0:01:21]} Bb6 {[%emt 0:00:04]} 19. Re2 {[%emt 0:01:56]} Nxd5 {[%emt 0:01:25]} 20. Nxd5 {[%emt 0:00:06]} Rd8 {[%emt 0:02:40]} 21. g4 {[%emt 0:00:53]} Rfe8 {[%emt 0:00:24]} 22. Qc3 {[%emt 0:00:53]} c6 {[%emt 0:00:45]} 23. Nxb6 {[%emt 0:00:03]} axb6 {[%emt 0:00:01]} 24. Red2 {[%emt 0:03:13]} Qe7 {[%emt 0:01:39]} 25. Bf1 {[%emt 0:00:55]} Bg8 {[%emt 0:00:07]} 26. Bg2 {[%emt 0:00:07]} Rd7 {[%emt 0:00:20]} 27. h4 {[%emt 0:00:13]} Ra8 {[%emt 0:00:16]} 28. g5 {[%emt 0:00:42]} fxg5 {[%emt 0:00:06]} 29. fxg5 {[%emt 0:00:37]} Rdd8 {[%emt 0:00:14]} 30. e5 {[%emt 0:00:16]} d5 {[%emt 0:00:38]} 31. Qe3 {[%emt 0:00:04]} Re8 {[%emt 0:01:08]} 32. Re1 {[%emt 0:00:13]} c5 {[%emt 0:00:31]} 33. bxc5 {[%emt 0:00:06]} bxc5 {[%emt 0:00:01]} 34. Bxd5 {[%emt 0:00:02]} c4 {[%emt 0:00:02]} 35. Kb2 {[%emt 0:00:19]} Rec8 {[%emt 0:00:31]} 36. Qc3 {[%emt 0:00:22]} Rxa3 {[%emt 0:00:05]} 37. Qxa3 {[%emt 0:00:16]} c3+ {[%emt 0:00:01]} 38. Qxc3 {[%emt 0:00:02]} Rxc3 {[%emt 0:00:02]} 39. Kxc3 {[%emt 0:00:01]} Qc5+ {[%emt 0:00:11]} 40. Kd3 {[%emt 0:00:09]} Qxd5+ {[%emt 0:00:17]} 41. Ke2 {[%emt 0:00:18]} Qxe5+ {[%emt 0:00:03]} 42. Kd1 {[%emt 0:00:00]} Qa1+ {[%emt 0:01:03]} 43. Ke2 {[%emt 0:00:01]} Qa4 {[%emt 0:00:04]} 44. Rd8 {[%emt 0:00:47]} Qxh4 {[%emt 0:00:14]} 0-1

[Event "RUS-chT Men Rapid 2019"]
[Site "Sochi"]
[Date "2019.10.19"]
[Round "7.24"]
[White "Rozum, Ivan"]
[Black "Dianov, Alexey"]
[Result "1-0"]
[ECO "A28"]
[WhiteElo "2599"]
[BlackElo "2158"]
[Annotator "ChessBase"]
[PlyCount "85"]
[EventDate "2019.10.18"]
[EventType "swiss"]
[EventCountry "RUS"]
[SourceTitle "playchess.com"]
[Source "ChessBase"]
[SourceQuality "1"]
[TimeControl "900+10"]

1. c4 {[%emt 0:00:00]} e5 {[%emt 0:00:00]} 2. Nc3 {[%emt 0:00:00]} Nc6 {[%emt 0:00:00]} 3. Nf3 {[%emt 0:00:00]} Nf6 {[%emt 0:00:08]} 4. e3 {[%emt 0:00:04]} g6 {[%emt 0:00:37]} 5. d4 {[%emt 0:00:29]} d6 {[%emt 0:00:12]} 6. g3 {[%emt 0:01:24]} Bg7 {[%emt 0:00:02]} 7. Bg2 {[%emt 0:00:01]} O-O {[%emt 0:00:04]} 8. O-O {[%emt 0:00:02]} Bf5 {[%emt 0:01:19]} 9. d5 {[%emt 0:00:19]} Nb4 {[%emt 0:01:32]} 10. Ne1 {[%emt 0:00:17]} a5 {[%emt 0:00:15]} 11. e4 {[%emt 0:00:05]} Bd7 {[%emt 0:00:37]} 12. a3 {[%emt 0:00:21]} Na6 {[%emt 0:00:01]} 13. Rb1 {[%emt 0:00:02]} Nc5 {[%emt 0:00:59]} 14. b4 {[%emt 0:00:55]} axb4 {[%emt 0:00:02]} 15. axb4 {[%emt 0:00:01]} Na4 {[%emt 0:00:02]} 16. Nxa4 {[%emt 0:00:03]} Rxa4 {[%emt 0:00:22]} 17. Nc2 {[%emt 0:00:48]} Qa8 {[%emt 0:00:43]} 18. Bb2 {[%emt 0:00:13]} Qa6 {[%emt 0:00:28]} 19. Qd3 {[%emt 0:00:10]} Ra8 {[%emt 0:02:25]} 20. Ra1 {[%emt 0:00:56]} Qb6 {[%emt 0:00:08]} 21. h3 {[%emt 0:00:15]} Nh5 {[%emt 0:00:31]} 22. Rxa4 {[%emt 0:00:25]} Rxa4 {[%emt 0:00:02]} 23. Ra1 {[%emt 0:00:05]} Qa7 {[%emt 0:00:33]} 24. Ra3 {[%emt 0:01:17]} f5 {[%emt 0:00:35]} 25. Qb3 {[%emt 0:01:09]} Nf6 {[%emt 0:01:04]} 26. exf5 {[%emt 0:00:01]} gxf5 {[%emt 0:00:03]} 27. c5 {[%emt 0:00:16]} Rxa3 {[%emt 0:00:12]} 28. Nxa3 {[%emt 0:00:11]} Qa4 {[%emt 0:00:37]} 29. Qxa4 {[%emt 0:00:41]} Bxa4 {[%emt 0:00:02]} 30. Nc4 {[%emt 0:00:06]} Bb3 {[%emt 0:00:56]} 31. Ne3 {[%emt 0:00:15]} f4 {[%emt 0:01:20]} 32. gxf4 {[%emt 0:00:10]} exf4 {[%emt 0:00:01]} 33. Nf5 {[%emt 0:00:01]} Bh8 {[%emt 0:00:50]} 34. c6 {[%emt 0:04:43]} bxc6 {[%emt 0:01:27]} 35. dxc6 {[%emt 0:00:02]} Be6 {[%emt 0:00:40]} 36. Nd4 {[%emt 0:00:49]} Ne8 {[%emt 0:00:12]} 37. Nxe6 {[%emt 0:00:30]} Bxb2 {[%emt 0:00:05]} 38. b5 {[%emt 0:00:12]} Kf7 {[%emt 0:01:15]} 39. Nxc7 {[%emt 0:00:23]} Bd4 {[%emt 0:00:56]} 40. Na8 {[%emt 0:00:21]} Ke7 {[%emt 0:00:12]} 41. c7 {[%emt 0:00:02]} Kd7 {[%emt 0:00:02]} 42. Bc6+ {[%emt 0:00:01]} Kc8 {[%emt 0:00:02]} 43. Bxe8 {[%emt 0:00:04]} 1-0

[Event "RUS-chT Men Rapid 2019"]
[Site "Sochi"]
[Date "2019.10.19"]
[Round "7.27"]
[White "Linker, Mikhail"]
[Black "Pingin, Artem"]
[Result "1-0"]
[ECO "D02"]
[WhiteElo "2269"]
[BlackElo "2048"]
[Annotator "NA"]
[PlyCount "91"]
[EventDate "2019.10.18"]
[EventType "swiss"]
[EventCountry "RUS"]
[SourceTitle "playchess.com"]
[Source "ChessBase"]
[SourceQuality "1"]
[TimeControl "900+10"]

1. Nf3 {[%emt 0:00:00]} d5 {[%emt 0:00:00]} 2. d4 {[%emt 0:00:00]} Nf6 {[%emt 0:00:00]} 3. Bf4 {[%emt 0:00:00]} c5 {[%emt 0:00:00]} 4. c3 {[%emt 0:00:01]} Nc6 {[%emt 0:00:00]} 5. e3 {[%emt 0:00:03]} Qb6 {[%emt 0:00:00]} 6. Qb3 {[%emt 0:00:35]} c4 {[%emt 0:00:00]} 7. Qxb6 {[%emt 0:00:03]} axb6 {[%emt 0:00:00]} 8. Nbd2 {[%emt 0:00:21]} b5 {[%emt 0:00:11]} 9. Be2 {[%emt 0:00:22]} Bf5 {[%emt 0:00:27]} 10. O-O {[%emt 0:00:47]} h6 {[%emt 0:00:32]} 11. Ne5 {[%emt 0:00:34]} e6 {[%emt 0:01:45]} 12. g4 {[%emt 0:02:30]} Bh7 {[%emt 0:00:37]} 13. a3 {[%emt 0:00:03]} Nxe5 {[%emt 0:01:14]} 14. Bxe5 {[%emt 0:00:05]} Nd7 {[%emt 0:00:03]} 15. Bg3 {[%emt 0:00:02]} Nb6 {[%emt 0:00:10]} 16. Bf3 {[%emt 0:02:05]} Be7 {[%emt 0:01:07]} 17. e4 {[%emt 0:02:08]} Bg5 {[%emt 0:00:34]} 18. Rad1 {[%emt 0:02:56]} Bxd2 {[%emt 0:04:13]} 19. Rxd2 {[%emt 0:00:30]} dxe4 {[%emt 0:00:02]} 20. Bg2 {[%emt 0:00:03]} O-O {[%emt 0:00:14]} 21. Re1 {[%emt 0:00:24]} f5 {[%emt 0:00:22]} 22. Bd6 {[%emt 0:00:14]} Rfe8 {[%emt 0:03:15]} 23. f3 {[%emt 0:00:12]} exf3 {[%emt 0:01:37]} 24. Bxf3 {[%emt 0:00:03]} Nd5 {[%emt 0:01:26]} 25. Rxe6 {[%emt 0:02:02]} Rxe6 {[%emt 0:00:32]} 26. Bxd5 {[%emt 0:00:03]} Rae8 {[%emt 0:00:26]} 27. Rf2 {[%emt 0:00:07]} Kh8 {[%emt 0:00:24]} 28. Bxe6 {[%emt 0:00:03]} Rxe6 {[%emt 0:00:01]} 29. Be5 {[%emt 0:00:02]} fxg4 {[%emt 0:00:18]} 30. Rf7 {[%emt 0:00:06]} Rg6 {[%emt 0:00:10]} 31. Rxb7 {[%emt 0:00:08]} Bg8 {[%emt 0:00:04]} 32. Rxb5 {[%emt 0:00:09]} Kh7 {[%emt 0:00:12]} 33. Rb7 {[%emt 0:00:19]} Bd5 {[%emt 0:00:09]} 34. Rd7 {[%emt 0:00:08]} Bc6 {[%emt 0:00:01]} 35. Rc7 {[%emt 0:00:02]} Bd5 {[%emt 0:00:04]} 36. Rc5 {[%emt 0:01:10]} Bf7 {[%emt 0:00:32]} 37. d5 {[%emt 0:00:10]} Rb6 {[%emt 0:00:11]} 38. Rc7 {[%emt 0:00:07]} Kg6 {[%emt 0:00:02]} 39. d6 {[%emt 0:00:19]} Rxb2 {[%emt 0:00:02]} 40. d7 {[%emt 0:00:04]} Rb1+ {[%emt 0:00:24]} 41. Kf2 {[%emt 0:00:04]} Rb2+ {[%emt 0:00:12]} 42. Ke3 {[%emt 0:00:03]} Rb8 {[%emt 0:00:07]} 43. Rc6+ {[%emt 0:00:04]} Kf5 {[%emt 0:00:01]} 44. Bxb8 {[%emt 0:00:03]} Bd5 {[%emt 0:00:02]} 45. Rd6 {[%emt 0:00:06]} Be6 {[%emt 0:00:03]} 46. d8=Q {[%emt 0:00:04]} 1-0

[Event "RUS-chT Men Rapid 2019"]
[Site "Sochi"]
[Date "2019.10.19"]
[Round "7.28"]
[White "Garifullina, Leya"]
[Black "Pervakov, Sergey"]
[Result "1-0"]
[ECO "B03"]
[WhiteElo "2330"]
[BlackElo "2093"]
[Annotator "NA"]
[PlyCount "93"]
[EventDate "2019.10.18"]
[EventType "swiss"]
[EventCountry "RUS"]
[SourceTitle "playchess.com"]
[Source "ChessBase"]
[SourceQuality "1"]
[TimeControl "900+10"]

1. e4 {[%emt 0:00:00]} Nf6 {[%emt 0:00:00]} 2. e5 {[%emt 0:00:00]} Nd5 {[%emt 0:00:00]} 3. d4 {[%emt 0:00:00]} Nb6 {[%emt 0:00:00]} 4. c4 {[%emt 0:00:00]} d6 {[%emt 0:00:00]} 5. exd6 {[%emt 0:00:00]} cxd6 {[%emt 0:00:00]} 6. Nc3 {[%emt 0:00:00]} g6 {[%emt 0:00:00]} 7. Be3 {[%emt 0:00:01]} Bg7 {[%emt 0:00:00]} 8. Rc1 {[%emt 0:00:01]} O-O {[%emt 0:00:03]} 9. b3 {[%emt 0:00:01]} e5 {[%emt 0:00:40]} 10. dxe5 {[%emt 0:00:11]} dxe5 {[%emt 0:00:04]} 11. c5 {[%emt 0:00:13]} N6d7 {[%emt 0:00:48]} 12. Bc4 {[%emt 0:00:10]} Nc6 {[%emt 0:02:03]} 13. Nf3 {[%emt 0:00:08]} Nf6 {[%emt 0:02:19]} 14. Qxd8 {[%emt 0:00:47]} Rxd8 {[%emt 0:00:38]} 15. O-O {[%emt 0:01:19]} h6 {[%emt 0:01:33]} 16. h3 {[%emt 0:00:24]} Bf5 {[%emt 0:02:37]} 17. Rfd1 {[%emt 0:00:37]} e4 {[%emt 0:01:21]} 18. Nd4 {[%emt 0:00:08]} Nxd4 {[%emt 0:00:26]} 19. Bxd4 {[%emt 0:00:02]} h5 {[%emt 0:00:33]} 20. Nb5 {[%emt 0:01:07]} Ne8 {[%emt 0:01:43]} 21. Bxg7 {[%emt 0:00:02]} Kxg7 {[%emt 0:00:10]} 22. Nd4 {[%emt 0:01:01]} Nc7 {[%emt 0:00:50]} 23. Nxf5+ {[%emt 0:00:26]} gxf5 {[%emt 0:00:02]} 24. Rd6 {[%emt 0:00:17]} Rxd6 {[%emt 0:00:35]} 25. cxd6 {[%emt 0:00:02]} Ne6 {[%emt 0:01:26]} 26. Bxe6 {[%emt 0:00:09]} fxe6 {[%emt 0:00:01]} 27. Rc7+ {[%emt 0:00:01]} Kf6 {[%emt 0:00:12]} 28. Rxb7 {[%emt 0:00:02]} a5 {[%emt 0:00:32]} 29. d7 {[%emt 0:00:42]} Ke7 {[%emt 0:00:33]} 30. Kf1 {[%emt 0:00:17]} a4 {[%emt 0:00:03]} 31. b4 {[%emt 0:00:04]} Kd6 {[%emt 0:00:26]} 32. Ke2 {[%emt 0:00:38]} a3 {[%emt 0:00:15]} 33. Ra7 {[%emt 0:00:57]} Rg8 {[%emt 0:00:13]} 34. g3 {[%emt 0:00:04]} e5 {[%emt 0:00:11]} 35. b5 {[%emt 0:01:31]} Rd8 {[%emt 0:00:09]} 36. b6 {[%emt 0:01:06]} Rxd7 {[%emt 0:00:02]} 37. Rxa3 {[%emt 0:00:02]} Kc6 {[%emt 0:00:14]} 38. Rb3 {[%emt 0:00:02]} Rb7 {[%emt 0:00:10]} 39. Ke3 {[%emt 0:00:10]} Rxb6 {[%emt 0:00:21]} 40. Rxb6+ {[%emt 0:00:01]} Kxb6 {[%emt 0:00:01]} 41. g4 {[%emt 0:00:02]} fxg4 {[%emt 0:00:24]} 42. h4 {[%emt 0:00:01]} Kc5 {[%emt 0:00:11]} 43. Kxe4 {[%emt 0:00:02]} Kc4 {[%emt 0:00:07]} 44. Kxe5 {[%emt 0:00:08]} Kd3 {[%emt 0:00:06]} 45. Kf4 {[%emt 0:00:08]} Ke2 {[%emt 0:00:01]} 46. Kg3 {[%emt 0:00:01]} Kd3 {[%emt 0:00:14]} 47. f3 {[%emt 0:00:10]} 1-0

[Event "RUS-chT Men Rapid 2019"]
[Site "Sochi"]
[Date "2019.10.19"]
[Round "8.2"]
[White "Triapishko, Alexandr"]
[Black "Potkin, Vladimir"]
[Result "1/2-1/2"]
[ECO "D78"]
[WhiteElo "2514"]
[BlackElo "2583"]
[Annotator "ChessBase"]
[PlyCount "74"]
[EventDate "2019.10.18"]
[EventType "swiss"]
[EventCountry "RUS"]
[SourceTitle "playchess.com"]
[Source "ChessBase"]
[SourceQuality "1"]
[TimeControl "900+10"]

1. Nf3 {[%emt 0:00:00]} d5 {[%emt 0:00:00]} 2. g3 {[%emt 0:00:02]} g6 {[%emt 0:00:03]} 3. Bg2 {[%emt 0:00:26]} Bg7 {[%emt 0:00:02]} 4. d4 {[%emt 0:00:38]} Nf6 {[%emt 0:00:02]} 5. O-O {[%emt 0:00:03]} O-O {[%emt 0:00:03]} 6. c4 {[%emt 0:00:54]} c6 {[%emt 0:00:05]} 7. a4 {[%emt 0:00:19]} Bf5 {[%emt 0:01:11]} 8. Ne5 {[%emt 0:00:42]} Nbd7 {[%emt 0:02:45]} 9. cxd5 {[%emt 0:00:29]} cxd5 {[%emt 0:00:02]} 10. Nc3 {[%emt 0:00:30]} a5 {[%emt 0:03:30]} 11. Bf4 {[%emt 0:04:05]} e6 {[%emt 0:00:49]} 12. Nb5 {[%emt 0:01:20]} Nxe5 {[%emt 0:01:02]} 13. Bxe5 {[%emt 0:00:09]} Ne8 {[%emt 0:00:20]} 14. Rc1 {[%emt 0:01:26]} g5 {[%emt 0:01:52]} 15. Bxg7 {[%emt 0:01:43]} Kxg7 {[%emt 0:00:01]} 16. Qd2 {[%emt 0:00:09]} h6 {[%emt 0:00:15]} 17. Qe3 {[%emt 0:01:49]} Ra6 {[%emt 0:00:49]} 18. Rc5 {[%emt 0:00:19]} Nd6 {[%emt 0:00:27]} 19. Rfc1 {[%emt 0:00:30]} Nxb5 {[%emt 0:00:59]} 20. Rxb5 {[%emt 0:00:26]} Qd6 {[%emt 0:01:34]} 21. Rxb7 {[%emt 0:01:02]} Rb8 {[%emt 0:00:02]} 22. Rb5 {[%emt 0:00:35]} Rab6 {[%emt 0:01:20]} 23. Rcc5 {[%emt 0:00:05]} f6 {[%emt 0:00:23]} 24. Qc3 {[%emt 0:00:15]} Bg6 {[%emt 0:00:23]} 25. Qxa5 {[%emt 0:00:30]} Be8 {[%emt 0:00:02]} 26. Rxb6 {[%emt 0:00:32]} Qxb6 {[%emt 0:00:03]} 27. Qxb6 {[%emt 0:00:18]} Rxb6 {[%emt 0:00:00]} 28. a5 {[%emt 0:00:11]} Rxb2 {[%emt 0:00:02]} 29. Bf3 {[%emt 0:00:08]} f5 {[%emt 0:00:45]} 30. h3 {[%emt 0:00:08]} Ra2 {[%emt 0:00:35]} 31. Kg2 {[%emt 0:00:11]} Kf6 {[%emt 0:00:04]} 32. e3 {[%emt 0:00:13]} h5 {[%emt 0:00:09]} 33. g4 {[%emt 0:00:07]} fxg4 {[%emt 0:00:07]} 34. hxg4 {[%emt 0:00:01]} h4 {[%emt 0:00:00]} 35. e4 {[%emt 0:00:15]} dxe4 {[%emt 0:00:16]} 36. Bxe4 {[%emt 0:00:01]} Ra4 {[%emt 0:00:01]} 37. Bc6 {[%emt 0:00:25]} Bxc6+ {[%emt 0:00:04]} 1/2-1/2